[Event "Titled Tuesday Blitz July 11 Early 2023"]
[White "Ibarra Jerez, Jose Carlos"]
[Black "Dubov, Daniil"]
[WhiteFideId "2226332"]
[BlackFideId "24126055"]
[WhiteElo "2918"]
[BlackElo "3077"]
[Result "0-1"]
[Round "10"]
[TimeControl "180+2"]
[Date "2023.07.11"]
[WhiteClock "0:00:00"]
[BlackClock "0:00:07"]
[Board "6"]

1. e4 {[%clk 0:03:00]}  e5 {[%clk 0:02:51]} 2. Nf3 {[%clk 0:03:00]}  Nf6 {[%clk 0:02:51]} 3. Nc3 {[%clk 0:03:00]}  Nc6 {[%clk 0:02:51]} 4. h3 {[%clk 0:03:00]}  Bc5 {[%clk 0:02:49]} 5. Nxe5 {[%clk 0:02:59]}  O-O {[%clk 0:02:49]} 6. Nxc6 {[%clk 0:02:41]}  dxc6 {[%clk 0:02:49]} 7. d3 {[%clk 0:02:34]}  Bd4 {[%clk 0:02:47]} 8. Be2 {[%clk 0:02:33]}  Nd7 {[%clk 0:02:47]} 9. O-O {[%clk 0:02:32]}  Ne5 {[%clk 0:02:46]} 10. Kh2 {[%clk 0:02:27]}  f5 {[%clk 0:02:45]} 11. exf5 {[%clk 0:01:59]}  Bxf5 {[%clk 0:02:44]} 12. f4 {[%clk 0:02:00]}  Ng6 {[%clk 0:02:41]} 13. Ne4 {[%clk 0:01:55]}  Qh4 {[%clk 0:02:27]} 14. Bg4 {[%clk 0:01:54]}  Ne7 {[%clk 0:01:42]} 15. Qe1 {[%clk 0:01:45]}  Qh6 {[%clk 0:01:40]} 16. Qg3 {[%clk 0:01:39]}  Rae8 {[%clk 0:01:37]} 17. c3 {[%clk 0:01:14]}  Bf6 {[%clk 0:01:35]} 18. Bd2 {[%clk 0:01:12]}  Rd8 {[%clk 0:01:31]} 19. Nxf6+ {[%clk 0:00:57]}  Qxf6 {[%clk 0:01:31]} 20. Be2 {[%clk 0:00:56]}  c5 {[%clk 0:01:26]} 21. Rae1 {[%clk 0:00:55]}  b6 {[%clk 0:01:23]} 22. Bc1 {[%clk 0:00:49]}  Rd7 {[%clk 0:01:20]} 23. Qf3 {[%clk 0:00:47]}  Rfd8 {[%clk 0:01:20]} 24. Rd1 {[%clk 0:00:47]}  h6 {[%clk 0:01:12]} 25. Rfe1 {[%clk 0:00:47]}  Be6 {[%clk 0:01:11]} 26. a3 {[%clk 0:00:40]}  Bb3 {[%clk 0:01:11]} 27. Rd2 {[%clk 0:00:40]}  Nd5 {[%clk 0:01:06]} 28. Rf1 {[%clk 0:00:36]}  Re7 {[%clk 0:01:04]} 29. Bd1 {[%clk 0:00:36]}  Bxd1 {[%clk 0:00:44]} 30. Rdxd1 {[%clk 0:00:37]}  Qf5 {[%clk 0:00:37]} 31. Rde1 {[%clk 0:00:36]}  Rde8 {[%clk 0:00:36]} 32. g4 {[%clk 0:00:26]}  Qd7 {[%clk 0:00:35]} 33. Bd2 {[%clk 0:00:27]}  Qd6 {[%clk 0:00:22]} 34. Rxe7 {[%clk 0:00:27]}  Rxe7 {[%clk 0:00:22]} 35. Kg2 {[%clk 0:00:23]}  a5 {[%clk 0:00:22]} 36. Rf2 {[%clk 0:00:23]}  a4 {[%clk 0:00:21]} 37. c4 {[%clk 0:00:20]}  Nf6 {[%clk 0:00:21]} 38. Bc3 {[%clk 0:00:20]}  Nd7 {[%clk 0:00:16]} 39. f5 {[%clk 0:00:17]}  Ne5 {[%clk 0:00:15]} 40. Bxe5 {[%clk 0:00:15]}  Qxe5 {[%clk 0:00:16]} 41. f6 {[%clk 0:00:15]}  Rf7 {[%clk 0:00:14]} 42. Qa8+ {[%clk 0:00:14]}  Kh7 {[%clk 0:00:14]} 43. fxg7 {[%clk 0:00:10]}  Rxf2+ {[%clk 0:00:13]} 44. Kxf2 {[%clk 0:00:11]}  Qxb2+ {[%clk 0:00:12]} 45. Kf3 {[%clk 0:00:11]}  Qf6+ {[%clk 0:00:12]} 46. Kg2 {[%clk 0:00:10]}  Qb2+ {[%clk 0:00:09]} 47. Kf3 {[%clk 0:00:10]}  Qf6+ {[%clk 0:00:07]} 48. Kg2 {[%clk 0:00:10]}  Kxg7 {[%clk 0:00:08]} 49. Qxa4 {[%clk 0:00:09]}  Qb2+ {[%clk 0:00:08]} 50. Kf3 {[%clk 0:00:09]}  Qf6+ {[%clk 0:00:08]} 51. Kg2 {[%clk 0:00:09]}  Qd4 {[%clk 0:00:08]} 52. Qc2 {[%clk 0:00:08]}  Qe3 {[%clk 0:00:07]} 53. Qc3+ {[%clk 0:00:07]}  Kg6 {[%clk 0:00:07]} 54. Qh8 {[%clk 0:00:06]}  Qe2+ {[%clk 0:00:07]} 55. Kg1 {[%clk 0:00:05]}  Qe1+ {[%clk 0:00:07]} 56. Kg2 {[%clk 0:00:06]}  Qe2+ {[%clk 0:00:07]} 57. Kg1 {[%clk 0:00:06]}  Qxd3 {[%clk 0:00:07]} 58. Qg8+ {[%clk 0:00:06]}  Kf6 {[%clk 0:00:07]} 59. Qh8+ {[%clk 0:00:00]}  Kg5 {[%clk 0:00:07]} 0-1


[Site "https://www.chess.com"]

[Event "Titled Tuesday Blitz July 11 Early 2023"]
[White "Kollars, Dmitrij"]
[Black "Pakleza, Zbigniew"]
[WhiteFideId "12909572"]
[BlackFideId "1119290"]
[WhiteElo "3007"]
[BlackElo "2827"]
[Result "1-0"]
[Round "10"]
[TimeControl "180+2"]
[Date "2023.07.11"]
[WhiteClock "0:00:05"]
[BlackClock "0:00:00"]
[Board "8"]

1. e4 {[%clk 0:03:00]}  d6 {[%clk 0:02:58]} 2. d4 {[%clk 0:03:00]}  Nf6 {[%clk 0:02:59]} 3. Nc3 {[%clk 0:03:01]}  c6 {[%clk 0:02:59]} 4. f4 {[%clk 0:02:59]}  Qb6 {[%clk 0:02:59]} 5. Be2 {[%clk 0:02:53]}  e5 {[%clk 0:02:57]} 6. Nf3 {[%clk 0:02:49]}  exd4 {[%clk 0:02:57]} 7. Qxd4 {[%clk 0:02:47]}  Nbd7 {[%clk 0:02:54]} 8. O-O {[%clk 0:02:43]}  d5 {[%clk 0:02:47]} 9. Qxb6 {[%clk 0:02:42]}  Nxb6 {[%clk 0:02:39]} 10. e5 {[%clk 0:02:43]}  Bc5+ {[%clk 0:02:36]} 11. Kh1 {[%clk 0:02:43]}  Ng4 {[%clk 0:02:35]} 12. Nd1 {[%clk 0:02:39]}  Nh6 {[%clk 0:02:16]} 13. Be3 {[%clk 0:02:38]}  Bxe3 {[%clk 0:02:14]} 14. Nxe3 {[%clk 0:02:39]}  Nf5 {[%clk 0:02:14]} 15. Nxf5 {[%clk 0:02:20]}  Bxf5 {[%clk 0:02:15]} 16. Nd4 {[%clk 0:02:19]}  Be4 {[%clk 0:02:15]} 17. Bf3 {[%clk 0:02:20]}  Bxf3 {[%clk 0:01:52]} 18. Rxf3 {[%clk 0:02:20]}  g6 {[%clk 0:01:52]} 19. a4 {[%clk 0:02:19]}  a5 {[%clk 0:01:37]} 20. Kg1 {[%clk 0:01:58]}  O-O-O {[%clk 0:01:23]} 21. b3 {[%clk 0:01:46]}  Nd7 {[%clk 0:01:15]} 22. Re1 {[%clk 0:01:24]}  Rde8 {[%clk 0:01:08]} 23. Rfe3 {[%clk 0:01:15]}  Kc7 {[%clk 0:01:01]} 24. g3 {[%clk 0:01:07]}  Nc5 {[%clk 0:00:59]} 25. Kg2 {[%clk 0:01:07]}  Kb6 {[%clk 0:00:50]} 26. Kf3 {[%clk 0:01:03]}  Ne6 {[%clk 0:00:42]} 27. c3 {[%clk 0:00:54]}  h5 {[%clk 0:00:36]} 28. Rd1 {[%clk 0:00:48]}  Re7 {[%clk 0:00:31]} 29. Re2 {[%clk 0:00:35]}  Nc5 {[%clk 0:00:27]} 30. Rc2 {[%clk 0:00:26]}  Rd8 {[%clk 0:00:26]} 31. h3 {[%clk 0:00:24]}  Rh8 {[%clk 0:00:25]} 32. Rb2 {[%clk 0:00:22]}  Kc7 {[%clk 0:00:22]} 33. Ra2 {[%clk 0:00:16]}  Rd7 {[%clk 0:00:17]} 34. Re2 {[%clk 0:00:15]}  Ne6 {[%clk 0:00:16]} 35. Re3 {[%clk 0:00:14]}  Kb6 {[%clk 0:00:14]} 36. Rg1 {[%clk 0:00:12]}  c5 {[%clk 0:00:11]} 37. Nb5 {[%clk 0:00:12]}  d4 {[%clk 0:00:12]} 38. Rd3 {[%clk 0:00:11]}  Rhd8 {[%clk 0:00:11]} 39. Rgd1 {[%clk 0:00:12]}  Kc6 {[%clk 0:00:10]} 40. Ke4 {[%clk 0:00:09]}  dxc3 {[%clk 0:00:02]} 41. Nxc3 {[%clk 0:00:07]}  Nd4 {[%clk 0:00:00]} 42. Nb5 {[%clk 0:00:05]} 1-0


[Site "https://www.chess.com"]

[Event "Titled Tuesday Blitz July 11 Early 2023"]
[White "He, Anthony"]
[Black "Gorovets, Andrey"]
[WhiteFideId "2088215"]
[BlackFideId "13504037"]
[WhiteElo "2999"]
[BlackElo "2779"]
[Result "0-1"]
[Round "10"]
[TimeControl "180+2"]
[Date "2023.07.11"]
[WhiteClock "0:00:15"]
[BlackClock "0:00:03"]
[Board "9"]

1. e4 {[%clk 0:03:00]}  c5 {[%clk 0:02:57]} 2. Nf3 {[%clk 0:03:00]}  Nc6 {[%clk 0:02:57]} 3. d4 {[%clk 0:03:00]}  cxd4 {[%clk 0:02:58]} 4. Nxd4 {[%clk 0:02:59]}  Nf6 {[%clk 0:02:59]} 5. Nc3 {[%clk 0:03:00]}  e5 {[%clk 0:02:59]} 6. Ndb5 {[%clk 0:02:58]}  d6 {[%clk 0:03:00]} 7. Nd5 {[%clk 0:02:58]}  Nxd5 {[%clk 0:02:57]} 8. exd5 {[%clk 0:02:59]}  Ne7 {[%clk 0:02:58]} 9. c4 {[%clk 0:02:58]}  Ng6 {[%clk 0:02:56]} 10. Qa4 {[%clk 0:02:57]}  Bd7 {[%clk 0:02:55]} 11. Qb4 {[%clk 0:02:57]}  Qb8 {[%clk 0:02:51]} 12. Be3 {[%clk 0:02:58]}  a6 {[%clk 0:02:48]} 13. Nc3 {[%clk 0:02:58]}  Be7 {[%clk 0:02:43]} 14. Be2 {[%clk 0:02:58]}  O-O {[%clk 0:02:39]} 15. O-O {[%clk 0:02:52]}  Nf4 {[%clk 0:02:32]} 16. Bf3 {[%clk 0:02:44]}  Nd3 {[%clk 0:02:25]} 17. Qb3 {[%clk 0:02:44]}  f5 {[%clk 0:02:23]} 18. Be2 {[%clk 0:02:40]}  Nc5 {[%clk 0:02:16]} 19. Qc2 {[%clk 0:02:38]}  a5 {[%clk 0:02:16]} 20. Rad1 {[%clk 0:02:29]}  b6 {[%clk 0:02:05]} 21. f4 {[%clk 0:02:23]}  Bf6 {[%clk 0:02:03]} 22. Kh1 {[%clk 0:02:17]}  Qd8 {[%clk 0:02:00]} 23. b3 {[%clk 0:02:08]}  Qe7 {[%clk 0:01:53]} 24. Rfe1 {[%clk 0:02:06]}  Rae8 {[%clk 0:01:48]} 25. Bf2 {[%clk 0:01:54]}  Qf7 {[%clk 0:01:32]} 26. fxe5 {[%clk 0:01:46]}  Bxe5 {[%clk 0:01:33]} 27. Bf3 {[%clk 0:01:43]}  g5 {[%clk 0:01:30]} 28. g3 {[%clk 0:01:16]}  h5 {[%clk 0:01:17]} 29. Nb5 {[%clk 0:01:13]}  Bxb5 {[%clk 0:01:07]} 30. cxb5 {[%clk 0:01:13]}  g4 {[%clk 0:01:06]} 31. Bg2 {[%clk 0:01:13]}  h4 {[%clk 0:00:59]} 32. a3 {[%clk 0:01:09]}  h3 {[%clk 0:00:42]} 33. Bf1 {[%clk 0:01:09]}  f4 {[%clk 0:00:40]} 34. gxf4 {[%clk 0:01:00]}  Qxf4 {[%clk 0:00:38]} 35. Bg3 {[%clk 0:00:59]}  Qf3+ {[%clk 0:00:36]} 36. Kg1 {[%clk 0:01:00]}  Kg7 {[%clk 0:00:17]} 37. Bxe5+ {[%clk 0:00:54]}  Rxe5 {[%clk 0:00:17]} 38. Rxe5 {[%clk 0:00:51]}  dxe5 {[%clk 0:00:17]} 39. Qe2 {[%clk 0:00:51]}  Qf4 {[%clk 0:00:13]} 40. d6 {[%clk 0:00:40]}  g3 {[%clk 0:00:04]} 41. Bxh3 {[%clk 0:00:38]}  gxh2+ {[%clk 0:00:03]} 42. Qxh2 {[%clk 0:00:33]}  Qe3+ {[%clk 0:00:03]} 43. Kh1 {[%clk 0:00:33]}  Ne4 {[%clk 0:00:01]} 44. Qxe5+ {[%clk 0:00:31]}  Kh6 {[%clk 0:00:01]} 45. Qe6+ {[%clk 0:00:30]}  Rf6 {[%clk 0:00:01]} 46. Qc8 {[%clk 0:00:18]}  Nf2+ {[%clk 0:00:01]} 47. Kh2 {[%clk 0:00:19]}  Qf4+ {[%clk 0:00:01]} 48. Kg2 {[%clk 0:00:17]}  Rg6+ {[%clk 0:00:01]} 49. Kf1 {[%clk 0:00:16]}  Nxd1+ {[%clk 0:00:01]} 50. Ke2 {[%clk 0:00:15]}  Qf2+ {[%clk 0:00:02]} 51. Kd3 {[%clk 0:00:15]}  Rxd6+ {[%clk 0:00:02]} 52. Ke4 {[%clk 0:00:14]}  Qd4+ {[%clk 0:00:02]} 53. Kf5 {[%clk 0:00:15]}  Rf6# {[%clk 0:00:03]} 0-1


[Site "https://www.chess.com"]

[Event "Titled Tuesday Blitz July 11 Early 2023"]
[White "Kumsiashvili, Nikoloz"]
[Black "Pranav, V"]
[WhiteFideId "13600621"]
[BlackFideId "25060783"]
[WhiteElo "2742"]
[BlackElo "2956"]
[Result "0-1"]
[Round "10"]
[TimeControl "180+2"]
[Date "2023.07.11"]
[WhiteClock "0:00:17"]
[BlackClock "0:01:14"]
[Board "11"]

1. Nf3 {[%clk 0:03:00]}  Nf6 {[%clk 0:02:59]} 2. b3 {[%clk 0:03:00]}  d6 {[%clk 0:02:59]} 3. d4 {[%clk 0:02:57]}  g6 {[%clk 0:02:58]} 4. Bb2 {[%clk 0:02:58]}  Bg7 {[%clk 0:02:59]} 5. e3 {[%clk 0:02:58]}  O-O {[%clk 0:03:00]} 6. Be2 {[%clk 0:02:58]}  Nc6 {[%clk 0:03:00]} 7. O-O {[%clk 0:02:57]}  Nd7 {[%clk 0:03:01]} 8. c4 {[%clk 0:02:56]}  e5 {[%clk 0:03:01]} 9. dxe5 {[%clk 0:02:54]}  Re8 {[%clk 0:02:52]} 10. Nc3 {[%clk 0:02:49]}  Ndxe5 {[%clk 0:02:49]} 11. Nd4 {[%clk 0:02:45]}  Nxd4 {[%clk 0:02:47]} 12. exd4 {[%clk 0:02:44]}  Nc6 {[%clk 0:02:47]} 13. Nd5 {[%clk 0:02:31]}  Be6 {[%clk 0:02:46]} 14. Bf3 {[%clk 0:02:30]}  Bxd5 {[%clk 0:02:29]} 15. Bxd5 {[%clk 0:02:29]}  Qh4 {[%clk 0:02:29]} 16. g3 {[%clk 0:02:09]}  Qf6 {[%clk 0:02:26]} 17. Qf3 {[%clk 0:01:31]}  Qxf3 {[%clk 0:01:34]} 18. Bxf3 {[%clk 0:01:32]}  Nxd4 {[%clk 0:01:34]} 19. Bxd4 {[%clk 0:01:31]}  Bxd4 {[%clk 0:01:35]} 20. Rad1 {[%clk 0:01:27]}  c5 {[%clk 0:01:33]} 21. Bxb7 {[%clk 0:01:27]}  Rab8 {[%clk 0:01:34]} 22. Bf3 {[%clk 0:01:23]}  Re5 {[%clk 0:01:33]} 23. Rde1 {[%clk 0:01:08]}  a5 {[%clk 0:01:30]} 24. Rxe5 {[%clk 0:01:06]}  dxe5 {[%clk 0:01:31]} 25. Bc6 {[%clk 0:00:52]}  Kg7 {[%clk 0:01:29]} 26. Kg2 {[%clk 0:00:52]}  f5 {[%clk 0:01:28]} 27. f3 {[%clk 0:00:52]}  Kf6 {[%clk 0:01:27]} 28. Re1 {[%clk 0:00:48]}  Rb6 {[%clk 0:01:22]} 29. Bb5 {[%clk 0:00:43]}  Rd6 {[%clk 0:01:21]} 30. Rd1 {[%clk 0:00:42]}  h6 {[%clk 0:01:21]} 31. Kf1 {[%clk 0:00:35]}  h5 {[%clk 0:01:19]} 32. h3 {[%clk 0:00:30]}  Rd8 {[%clk 0:01:18]} 33. Ke2 {[%clk 0:00:29]}  h4 {[%clk 0:01:17]} 34. g4 {[%clk 0:00:29]}  Kg5 {[%clk 0:01:17]} 35. gxf5 {[%clk 0:00:27]}  gxf5 {[%clk 0:01:17]} 36. Bc6 {[%clk 0:00:24]}  Kf4 {[%clk 0:01:17]} 37. Bd5 {[%clk 0:00:24]}  Rd7 {[%clk 0:01:16]} 38. a3 {[%clk 0:00:20]}  Rg7 {[%clk 0:01:16]} 39. Rb1 {[%clk 0:00:20]}  Rg2+ {[%clk 0:01:14]} 40. Kd3 {[%clk 0:00:20]}  e4+ {[%clk 0:01:13]} 41. fxe4 {[%clk 0:00:20]}  fxe4+ {[%clk 0:01:14]} 42. Bxe4 {[%clk 0:00:17]}  Rg3+ {[%clk 0:01:14]} 0-1


[Site "https://www.chess.com"]

[Event "Titled Tuesday Blitz July 11 Early 2023"]
[White "Tang, Andrew"]
[Black "Mahdavi, Reza"]
[WhiteFideId "2059630"]
[BlackFideId "12595926"]
[WhiteElo "2924"]
[BlackElo "2773"]
[Result "1-0"]
[Round "10"]
[TimeControl "180+2"]
[Date "2023.07.11"]
[WhiteClock "0:00:49"]
[BlackClock "0:01:08"]
[Board "12"]

1. d4 {[%clk 0:03:00]}  Nf6 {[%clk 0:03:00]} 2. c4 {[%clk 0:03:00]}  e6 {[%clk 0:03:00]} 3. Nc3 {[%clk 0:03:01]}  d5 {[%clk 0:03:01]} 4. cxd5 {[%clk 0:03:02]}  exd5 {[%clk 0:03:01]} 5. Bg5 {[%clk 0:03:02]}  Bb4 {[%clk 0:02:58]} 6. Qc2 {[%clk 0:03:01]}  h6 {[%clk 0:02:47]} 7. Bh4 {[%clk 0:03:01]}  g5 {[%clk 0:02:42]} 8. Bg3 {[%clk 0:03:01]}  Ne4 {[%clk 0:02:43]} 9. e3 {[%clk 0:02:57]}  h5 {[%clk 0:02:35]} 10. f3 {[%clk 0:02:27]}  Nxg3 {[%clk 0:02:35]} 11. hxg3 {[%clk 0:02:28]}  Qe7 {[%clk 0:02:30]} 12. Kf2 {[%clk 0:02:28]}  Be6 {[%clk 0:02:29]} 13. Bd3 {[%clk 0:02:21]}  c6 {[%clk 0:02:23]} 14. f4 {[%clk 0:01:48]}  h4 {[%clk 0:02:14]} 15. Nf3 {[%clk 0:01:28]}  hxg3+ {[%clk 0:02:13]} 16. Kxg3 {[%clk 0:01:29]}  gxf4+ {[%clk 0:02:13]} 17. exf4 {[%clk 0:01:29]}  Rg8+ {[%clk 0:02:07]} 18. Kf2 {[%clk 0:01:29]}  Qd6 {[%clk 0:02:02]} 19. f5 {[%clk 0:01:18]}  Qg3+ {[%clk 0:02:01]} 20. Kf1 {[%clk 0:01:18]}  Bd7 {[%clk 0:01:55]} 21. Rh3 {[%clk 0:01:10]}  Qg7 {[%clk 0:01:51]} 22. Re1+ {[%clk 0:01:07]}  Kd8 {[%clk 0:01:48]} 23. Qf2 {[%clk 0:01:06]}  Bd6 {[%clk 0:01:45]} 24. Ne5 {[%clk 0:01:04]}  f6 {[%clk 0:01:29]} 25. Ng6 {[%clk 0:01:05]}  Be8 {[%clk 0:01:30]} 26. Ne2 {[%clk 0:01:05]}  Bxg6 {[%clk 0:01:26]} 27. fxg6 {[%clk 0:01:05]}  Rh8 {[%clk 0:01:24]} 28. Nf4 {[%clk 0:00:48]}  Bxf4 {[%clk 0:01:08]} 29. Qxf4 {[%clk 0:00:49]} 1-0


[Site "https://www.chess.com"]

[Event "Titled Tuesday Blitz July 11 Early 2023"]
[White "Goltsev, Dmitry"]
[Black "Vokhidov, Shamsiddin"]
[WhiteFideId "24176710"]
[BlackFideId "14204223"]
[WhiteElo "2777"]
[BlackElo "2920"]
[Result "0-1"]
[Round "10"]
[TimeControl "180+2"]
[Date "2023.07.11"]
[WhiteClock "0:00:00"]
[BlackClock "0:01:13"]
[Board "13"]

1. e4 {[%clk 0:02:57]}  c5 {[%clk 0:03:00]} 2. Nf3 {[%clk 0:02:58]}  d6 {[%clk 0:02:59]} 3. d4 {[%clk 0:02:58]}  cxd4 {[%clk 0:03:00]} 4. Nxd4 {[%clk 0:02:58]}  Nf6 {[%clk 0:03:01]} 5. Nc3 {[%clk 0:02:58]}  Nc6 {[%clk 0:03:01]} 6. Be2 {[%clk 0:02:58]}  e5 {[%clk 0:02:59]} 7. Nb3 {[%clk 0:02:58]}  Be7 {[%clk 0:02:59]} 8. Be3 {[%clk 0:02:58]}  Be6 {[%clk 0:02:58]} 9. f3 {[%clk 0:02:57]}  O-O {[%clk 0:02:55]} 10. O-O {[%clk 0:02:57]}  a5 {[%clk 0:02:54]} 11. Nd5 {[%clk 0:02:56]}  a4 {[%clk 0:02:37]} 12. Nc1 {[%clk 0:02:28]}  Bxd5 {[%clk 0:02:24]} 13. exd5 {[%clk 0:02:29]}  Nb4 {[%clk 0:02:25]} 14. c4 {[%clk 0:02:27]}  a3 {[%clk 0:02:26]} 15. Qb3 {[%clk 0:02:23]}  Qa5 {[%clk 0:02:11]} 16. Bd2 {[%clk 0:02:00]}  Qb6+ {[%clk 0:01:57]} 17. Be3 {[%clk 0:01:46]}  axb2 {[%clk 0:01:57]} 18. Bxb6 {[%clk 0:01:47]}  bxa1=Q {[%clk 0:01:57]} 19. Qxb4 {[%clk 0:01:47]}  e4 {[%clk 0:01:47]} 20. f4 {[%clk 0:01:44]}  Nd7 {[%clk 0:01:44]} 21. Be3 {[%clk 0:01:32]}  Bf6 {[%clk 0:01:44]} 22. Qxb7 {[%clk 0:01:07]}  Bd4 {[%clk 0:01:41]} 23. Bxd4 {[%clk 0:00:55]}  Qxd4+ {[%clk 0:01:42]} 24. Kh1 {[%clk 0:00:56]}  Nc5 {[%clk 0:01:42]} 25. Qb6 {[%clk 0:00:53]}  Rab8 {[%clk 0:01:31]} 26. Qxd6 {[%clk 0:00:50]}  Nd3 {[%clk 0:01:30]} 27. Nxd3 {[%clk 0:00:14]}  exd3 {[%clk 0:01:31]} 28. Bf3 {[%clk 0:00:15]}  Qxc4 {[%clk 0:01:29]} 29. a3 {[%clk 0:00:10]}  d2 {[%clk 0:01:20]} 30. Rd1 {[%clk 0:00:10]}  Rbe8 {[%clk 0:01:20]} 31. h3 {[%clk 0:00:04]}  Re1+ {[%clk 0:01:19]} 32. Kh2 {[%clk 0:00:04]}  Qd4 {[%clk 0:01:19]} 33. Kg3 {[%clk 0:00:00]}  Qe3 {[%clk 0:01:13]} 0-1


[Site "https://www.chess.com"]

[Event "Titled Tuesday Blitz July 11 Early 2023"]
[White "Gordievsky, Dmitry"]
[Black "Jarovinsky, Alexey"]
[WhiteFideId "24112798"]
[BlackFideId "14115131"]
[WhiteElo "2907"]
[BlackElo "2735"]
[Result "1-0"]
[Round "10"]
[TimeControl "180+2"]
[Date "2023.07.11"]
[WhiteClock "0:00:07"]
[BlackClock "0:00:02"]
[Board "14"]

1. Nf3 {[%clk 0:03:00]}  Nc6 {[%clk 0:02:56]} 2. d4 {[%clk 0:02:58]}  d6 {[%clk 0:02:56]} 3. e4 {[%clk 0:02:58]}  Nf6 {[%clk 0:02:55]} 4. Nc3 {[%clk 0:02:57]}  a6 {[%clk 0:02:51]} 5. d5 {[%clk 0:02:54]}  Ne5 {[%clk 0:02:50]} 6. Nxe5 {[%clk 0:02:52]}  dxe5 {[%clk 0:02:51]} 7. Bc4 {[%clk 0:02:40]}  b5 {[%clk 0:02:30]} 8. Bb3 {[%clk 0:02:40]}  e6 {[%clk 0:02:22]} 9. dxe6 {[%clk 0:02:38]}  Qxd1+ {[%clk 0:02:22]} 10. Nxd1 {[%clk 0:02:32]}  fxe6 {[%clk 0:01:44]} 11. f3 {[%clk 0:02:31]}  c5 {[%clk 0:01:33]} 12. c4 {[%clk 0:02:31]}  Bd6 {[%clk 0:01:28]} 13. Be3 {[%clk 0:02:30]}  Bd7 {[%clk 0:01:23]} 14. Nf2 {[%clk 0:02:28]}  Rc8 {[%clk 0:01:13]} 15. O-O-O {[%clk 0:02:14]}  Ke7 {[%clk 0:01:11]} 16. Rd2 {[%clk 0:01:53]}  bxc4 {[%clk 0:01:09]} 17. Bxc4 {[%clk 0:01:51]}  Bb5 {[%clk 0:01:09]} 18. b3 {[%clk 0:01:46]}  Rhd8 {[%clk 0:01:02]} 19. Rhd1 {[%clk 0:01:46]}  h6 {[%clk 0:00:59]} 20. Nd3 {[%clk 0:01:43]}  Nd7 {[%clk 0:00:51]} 21. a4 {[%clk 0:01:15]}  Bxc4 {[%clk 0:00:47]} 22. bxc4 {[%clk 0:01:16]}  Ke8 {[%clk 0:00:30]} 23. Rb2 {[%clk 0:01:10]}  Rb8 {[%clk 0:00:27]} 24. Rxb8 {[%clk 0:00:51]}  Rxb8 {[%clk 0:00:28]} 25. Kc2 {[%clk 0:00:52]}  Be7 {[%clk 0:00:22]} 26. a5 {[%clk 0:00:40]}  Rb7 {[%clk 0:00:22]} 27. Bd2 {[%clk 0:00:27]}  Bf6 {[%clk 0:00:18]} 28. Bc3 {[%clk 0:00:26]}  Ke7 {[%clk 0:00:17]} 29. g3 {[%clk 0:00:24]}  g5 {[%clk 0:00:16]} 30. Nb2 {[%clk 0:00:15]}  Rb8 {[%clk 0:00:11]} 31. Na4 {[%clk 0:00:15]}  Ke8 {[%clk 0:00:11]} 32. Bd2 {[%clk 0:00:11]}  Bd8 {[%clk 0:00:05]} 33. Bc3 {[%clk 0:00:08]}  Bc7 {[%clk 0:00:05]} 34. h4 {[%clk 0:00:08]}  gxh4 {[%clk 0:00:04]} 35. gxh4 {[%clk 0:00:08]}  Ke7 {[%clk 0:00:05]} 36. Rg1 {[%clk 0:00:09]}  Rf8 {[%clk 0:00:05]} 37. Rg7+ {[%clk 0:00:08]}  Kd6 {[%clk 0:00:04]} 38. Rg3 {[%clk 0:00:02]}  Rf4 {[%clk 0:00:04]} 39. h5 {[%clk 0:00:02]}  Rh4 {[%clk 0:00:03]} 40. Rg8 {[%clk 0:00:02]}  Rxh5 {[%clk 0:00:03]} 41. Ra8 {[%clk 0:00:02]}  Rh2+ {[%clk 0:00:03]} 42. Kb3 {[%clk 0:00:02]}  Rh3 {[%clk 0:00:03]} 43. Rxa6+ {[%clk 0:00:02]}  Ke7 {[%clk 0:00:03]} 44. Ra7 {[%clk 0:00:02]}  Bb8 {[%clk 0:00:03]} 45. Rb7 {[%clk 0:00:02]}  Rxf3 {[%clk 0:00:03]} 46. a6 {[%clk 0:00:03]}  Rf1 {[%clk 0:00:02]} 47. Nxc5 {[%clk 0:00:02]}  Rb1+ {[%clk 0:00:01]} 48. Bb2 {[%clk 0:00:02]}  Rxb2+ {[%clk 0:00:01]} 49. Kxb2 {[%clk 0:00:02]}  Kd6 {[%clk 0:00:01]} 50. Nxd7 {[%clk 0:00:02]}  Kc6 {[%clk 0:00:01]} 51. Rxb8 {[%clk 0:00:03]}  Kxd7 {[%clk 0:00:01]} 52. Rh8 {[%clk 0:00:04]}  Kc7 {[%clk 0:00:02]} 53. Rxh6 {[%clk 0:00:04]}  Kc6 {[%clk 0:00:03]} 54. Rxe6+ {[%clk 0:00:05]}  Kc7 {[%clk 0:00:03]} 55. Rxe5 {[%clk 0:00:06]}  Kb8 {[%clk 0:00:04]} 56. Rd5 {[%clk 0:00:07]}  Ka7 {[%clk 0:00:02]} 57. e5 {[%clk 0:00:07]} 1-0


[Site "https://www.chess.com"]

[Event "Titled Tuesday Blitz July 11 Early 2023"]
[White "Bachmann, Axel"]
[Black "Ambartsumova, Karina"]
[WhiteFideId "3700488"]
[BlackFideId "4166299"]
[WhiteElo "2800"]
[BlackElo "2603"]
[Result "1-0"]
[Round "10"]
[TimeControl "180+2"]
[Date "2023.07.11"]
[WhiteClock "0:00:45"]
[BlackClock "0:00:00"]
[Board "17"]

1. e4 {[%clk 0:01:28]}  e5 {[%clk 0:02:59]} 2. Bc4 {[%clk 0:01:28]}  Nf6 {[%clk 0:02:57]} 3. d3 {[%clk 0:01:28]}  c6 {[%clk 0:02:52]} 4. Nf3 {[%clk 0:01:28]}  Be7 {[%clk 0:02:53]} 5. Bb3 {[%clk 0:01:29]}  O-O {[%clk 0:02:51]} 6. O-O {[%clk 0:01:30]}  d6 {[%clk 0:02:50]} 7. Nc3 {[%clk 0:01:30]}  Nbd7 {[%clk 0:02:48]} 8. d4 {[%clk 0:01:28]}  exd4 {[%clk 0:02:30]} 9. Nxd4 {[%clk 0:01:28]}  Nc5 {[%clk 0:02:30]} 10. Re1 {[%clk 0:01:28]}  Nxb3 {[%clk 0:02:30]} 11. axb3 {[%clk 0:01:28]}  Re8 {[%clk 0:02:29]} 12. Qf3 {[%clk 0:01:24]}  h6 {[%clk 0:02:19]} 13. h3 {[%clk 0:01:23]}  Bf8 {[%clk 0:02:13]} 14. Bf4 {[%clk 0:01:21]}  Nd7 {[%clk 0:01:52]} 15. Qg3 {[%clk 0:01:20]}  Kh8 {[%clk 0:00:47]} 16. Bxd6 {[%clk 0:01:17]}  Bxd6 {[%clk 0:00:46]} 17. Qxd6 {[%clk 0:01:18]}  Ne5 {[%clk 0:00:47]} 18. Qxd8 {[%clk 0:01:16]}  Rxd8 {[%clk 0:00:48]} 19. Red1 {[%clk 0:01:16]}  Ng6 {[%clk 0:00:35]} 20. Na4 {[%clk 0:01:09]}  Rb8 {[%clk 0:00:28]} 21. Nc5 {[%clk 0:01:06]}  a6 {[%clk 0:00:21]} 22. Kf1 {[%clk 0:00:55]}  b6 {[%clk 0:00:18]} 23. Nxc6 {[%clk 0:00:53]}  Rxd1+ {[%clk 0:00:17]} 24. Rxd1 {[%clk 0:00:54]}  Ra8 {[%clk 0:00:17]} 25. Rd8+ {[%clk 0:00:52]}  Kh7 {[%clk 0:00:18]} 26. Na4 {[%clk 0:00:52]}  Bb7 {[%clk 0:00:18]} 27. Rxa8 {[%clk 0:00:51]}  Bxa8 {[%clk 0:00:19]} 28. Nd4 {[%clk 0:00:52]}  Bxe4 {[%clk 0:00:20]} 29. Nxb6 {[%clk 0:00:52]}  Nf4 {[%clk 0:00:18]} 30. f3 {[%clk 0:00:52]}  Bb7 {[%clk 0:00:17]} 31. b4 {[%clk 0:00:49]}  f6 {[%clk 0:00:17]} 32. Na4 {[%clk 0:00:45]}  Kg6 {[%clk 0:00:16]} 33. Nc5 {[%clk 0:00:46]}  Bc8 {[%clk 0:00:17]} 34. c4 {[%clk 0:00:44]}  Kf7 {[%clk 0:00:16]} 35. b5 {[%clk 0:00:44]}  axb5 {[%clk 0:00:15]} 36. cxb5 {[%clk 0:00:44]}  Ke7 {[%clk 0:00:00]} 37. b6 {[%clk 0:00:45]} 1-0


[Site "https://www.chess.com"]